bitfinex/quotes_ETHUSD_20251122
["timestamp","ask_amount","ask_price","bid_price","bid_amount"]
[1763809977926,0.145,2733.9,2733.2,0.4972]
[1763809978110,0.6516,2734.3,2733.2,0.4972]
[1763809979049,0.4931,2734.2,2733.2,0.4972]
[1763809979604,0.4931,2734.2,2733.1,0.3191]
[1763809980513,0.4931,2734.2,2733.1,0.8163]
[1763809980730,0.4931,2734.2,2733.2,0.4972]
[1763809981249,0.4931,2734.2,2732.7,0.4972]
[1763809981250,0.405504,2734.1,2732.7,0.4972]
[1763809981402,0.405504,2734.1,2732.8,0.125]
[1763809981733,0.405504,2733.9,2732.8,0.125]
[1763809981931,0.405504,2733.9,2732.8,0.6222]
[1763809982095,0.6381,2733.8,2732.8,0.6222]
[1763809982536,0.4931,2733.7,2732.8,0.6222]
[1763809982845,0.405504,2733.6,2732.5,0.4972]
[1763809983048,0.405504,2733.6,2732.9,0.125]
[1763809983246,0.145,2733.8,2733.0,0.125]
[1763809983247,1.31249664,2733.2,2733.0,0.125]
[1763809983451,0.405504,2733.0,2732.0,0.1941]
[1763809983625,0.405504,2733.0,2732.1,0.125]
[1763809983825,0.90699264,2733.7,2732.1,0.125]
[1763809983826,0.6552,2732.9,2732.1,0.125]
[1763809984233,0.4931,2732.8,2732.1,0.125]
[1763809985238,0.405504,2732.7,2731.8,0.1941]
[1763809985418,0.405504,2732.7,2731.9,0.125]
[1763809985615,0.4823,2732.6,2731.9,0.125]
[1763809986525,0.405504,2732.8,2731.9,0.6209]
[1763809986941,0.405504,2732.8,2732.0,0.4959]
[1763809987336,0.405504,2732.8,2732.1,0.1907]
[1763809987558,0.405504,2732.8,2731.9,0.125]
[1763809987559,0.4823,2732.7,2731.9,0.125]
[1763809987848,0.4823,2732.7,2731.9,0.6209]
[1763809988348,0.1621,2732.9,2732.0,0.4959]
[1763809988753,0.1621,2732.9,2732.1,0.1907]
[1763809989144,0.1621,2732.9,2732.1,0.6866]
[1763809989742,0.6444,2732.9,2732.1,0.6866]
[1763809991554,0.4823,2732.8,2732.1,0.1907]
[1763809992054,0.067,2732.2,2731.6,0.1941]
[1763809992357,0.067,2732.2,2731.8,0.001]
[1763809992560,0.4782,2732.1,2731.9,0.125]
[1763809992858,0.90699264,2732.7,2731.9,0.6209]
[1763809992859,0.405504,2732.7,2731.9,0.6209]
[1763809993029,0.405504,2732.7,2732.0,0.4785]
[1763809993230,0.887804,2732.7,2732.0,0.4785]
[1763809993436,0.887804,2732.7,2731.9,0.125]
[1763809993658,0.405504,2732.5,2731.9,0.125]
[1763809993838,0.067,2732.0,2731.9,0.125]
[1763809994240,0.5452,2732.0,2731.9,0.125]
[1763809994848,0.405504,2731.9,2731.8,0.001]
[1763809995158,1.051104,2731.9,2731.8,0.126]
[1763809995955,1.051104,2731.9,2731.8,0.001]
[1763809996159,4.35931864,2731.9,2731.8,0.001]
[1763809996343,4.7952505,2731.9,2731.8,0.001]
[1763809996547,7.2113885,2731.9,2731.8,0.001]
[1763809996752,2.3940285,2731.9,2731.8,0.001]
[1763809996958,4.04884464,2731.9,2731.8,0.001]
[1763809997541,5.20936664,2731.9,2731.8,0.001]
[1763809998077,1.95809664,2731.9,2731.8,0.001]
[1763809999194,4.25920464,2731.9,2731.8,0.001]
[1763809999393,1.95809664,2731.9,2731.8,0.001]
[1763809999541,2.1539063,2731.9,2731.8,0.001]
[1763810000064,8.3870663,2731.9,2731.8,0.001]
[1763810000376,2.1539063,2731.9,2731.8,0.001]
[1763810000575,5.0729623,2731.9,2731.8,0.001]
[1763810000780,4.8359623,2731.9,2731.8,0.001]
[1763810001076,2.1539063,2731.9,2731.8,0.001]
[1763810001441,2.72848308,2731.9,2731.8,0.001]
[1763810001638,4.82081708,2731.9,2731.8,0.001]
[1763810002037,5.07481708,2731.9,2731.8,0.001]
[1763810003056,5.53835408,2731.9,2731.8,0.001]
[1763810003763,4.9637773,2731.9,2731.8,0.001]
[1763810004146,7.0265843,2731.9,2731.8,0.001]
[1763810004347,5.2336263,2731.9,2731.8,0.001]
[1763810005072,2.1539063,2731.9,2731.8,0.001]
[1763810005279,6.4586663,2731.9,2731.8,0.001]
[1763810006097,11.6792043,2731.9,2731.8,0.001]
[1763810006997,12.25386666,2731.9,2731.8,0.001]
[1763810007207,21.11875966,2731.9,2731.8,0.001]
[1763810007364,13.77317766,2731.9,2731.8,0.001]
[1763810007861,1.31249664,2731.4,2730.4,0.4959]
[1763810008092,0.405504,2731.0,2730.4,0.4959]
[1763810008391,5.1826223,2731.8,2730.4,0.4959]
[1763810008392,0.405504,2731.8,2730.4,0.4959]
[1763810008610,0.887804,2731.8,2730.9,0.4785]
[1763810008816,0.4823,2731.8,2731.0,0.4959]
[1763810008979,0.92897202,2731.9,2731.0,0.4959]
[1763810009178,0.35430966,2731.9,2731.0,0.4959]
[1763810009382,0.1585,2731.9,2731.0,0.4959]
[1763810009782,0.4823,2732.1,2731.0,0.4959]
[1763810010110,0.125,2732.5,2731.0,0.4959]
[1763810010311,0.4823,2732.4,2731.0,0.4959]
[1763810011164,0.4823,2732.4,2731.0,0.4969]
[1763810011403,0.405504,2732.3,2731.0,0.4969]
[1763810011588,0.002,2731.9,2731.0,0.4969]
[1763810011965,0.002,2731.9,2731.8,0.4785]
[1763810012162,0.002,2731.9,2731.8,0.9744]
[1763810013344,0.002,2731.9,2731.8,0.4785]
[1763810014634,0.002,2731.9,2731.3,0.4959]
[1763810014635,0.069,2731.9,2731.3,0.4959]
[1763810014947,0.069,2731.9,2731.6,0.125]
[1763810016628,0.002,2731.9,2731.6,0.125]
[1763810016828,0.002,2731.9,2731.8,0.4509]
[1763810019378,0.2462,2731.9,2731.6,0.125]
[1763810019566,0.6202,2731.9,2731.6,0.125]
[1763810020649,0.0894,2731.7,2731.6,0.125]
[1763810022540,0.66393155,2731.7,2731.6,0.125]
[1763810022736,0.57453155,2731.7,2731.6,0.5759]
[1763810023181,0.002,2731.9,2731.6,6.00887838]
[1763810023479,0.57437239,2733.0,2731.8,0.4509]
[1763810023687,0.4635,2733.5,2731.8,0.4509]
[1763810023849,0.4635,2733.5,2732.9,0.647]
[1763810024273,0.405504,2733.4,2732.9,0.647]
[1763810024469,0.4635,2733.5,2732.9,0.647]
[1763810024834,2.157372,2733.4,2732.9,0.647]
[1763810025040,2.157372,2733.4,2732.2,0.4626]
[1763810025041,0.0877,2733.0,2732.2,0.4626]
[1763810025344,0.2620872,2733.3,2732.2,0.4626]
[1763810025345,0.405504,2733.2,2732.6,0.125]
[1763810025870,0.405504,2733.0,2732.6,0.125]
[1763810026474,0.1641,2732.9,2732.6,0.125]
[1763810027833,0.0857,2732.7,2732.6,0.125]
[1763810028438,0.405504,2733.3,2732.6,1.0385]
[1763810029590,0.405504,2733.3,2732.6,0.5759]
[1763810029751,0.405504,2733.3,2732.7,0.4626]
[1763810030187,0.4635,2733.7,2732.7,0.4626]
[1763810030395,0.405504,2733.6,2732.7,0.4626]
[1763810030542,0.869004,2733.6,2732.7,0.4626]
[1763810031737,0.002,2733.0,2732.7,0.4626]
[1763810032075,0.002,2733.0,2732.9,0.4509]
[1763810032481,0.002,2733.0,2732.9,0.9135]
[1763810042291,0.1585,2734.5,2732.9,9.57958622]
[1763810042491,0.1585,2734.5,2733.5,0.4509]
[1763810042688,0.4635,2734.4,2733.6,0.7837]
[1763810043949,0.4635,2734.4,2733.6,0.3211]
[1763810044322,0.4635,2734.4,2733.6,0.7837]
[1763810044571,0.4635,2734.4,2733.6,0.125]
[1763810045219,0.0857,2733.7,2733.6,0.125]
[1763810045919,0.6598082,2733.7,2733.6,0.125]
[1763810047661,0.5741082,2733.7,2733.6,1.0281]
[1763810047834,0.4905,2734.3,2733.6,0.125]
[1763810048158,0.57409182,2734.0,2733.6,0.125]
[1763810048340,0.4905,2734.3,2733.6,0.125]
[1763810048660,0.405504,2734.4,2733.6,0.125]
[1763810048834,0.405504,2734.4,2733.6,0.5761]
[1763810049356,0.405504,2734.4,2733.7,0.4511]
[1763810049660,0.1585,2734.6,2733.7,0.4511]
[1763810050380,2.390423,2734.9,2733.7,0.4511]
[1763810050660,0.2880923,2734.8,2733.7,0.4511]
[1763810050866,0.4905,2735.0,2733.7,0.4511]
[1763810050867,1.39749264,2734.9,2733.7,0.4511]
[1763810051065,0.4905,2735.6,2733.7,0.4511]
[1763810051229,0.4905,2734.8,2733.7,0.4511]
[1763810051745,0.405504,2735.0,2733.7,0.4511]
[1763810051932,0.649,2735.1,2733.7,0.4511]
[1763810051933,0.1585,2735.1,2733.7,0.4511]
[1763810052475,0.649,2735.1,2733.7,0.4511]
[1763810052677,0.405504,2735.0,2733.7,0.4511]
[1763810052980,0.896004,2735.0,2733.7,0.4511]
[1763810053185,0.4905,2734.9,2733.7,0.4511]
[1763810053335,0.405504,2734.8,2733.7,0.4511]
[1763810053683,0.4905,2735.6,2733.7,0.4511]
[1763810053684,0.4905,2735.6,2734.8,0.6442]
[1763810053959,0.4905,2735.6,2734.9,0.125]
[1763810054462,2.471001,2736.0,2734.9,0.125]
[1763810054629,0.2635101,2735.9,2734.9,0.5761]
[1763810054829,0.4905,2736.0,2734.9,0.5761]
[1763810055071,0.4905,2736.0,2735.0,0.4511]
[1763810055267,0.1641,2736.1,2735.0,0.4511]
[1763810055474,0.1641,2736.1,2735.1,0.1922]
[1763810055863,0.1641,2736.1,2735.2,0.4511]
[1763810056190,0.1641,2736.1,2734.8,0.1922]
[1763810056191,0.90699264,2735.9,2734.8,0.1922]
[1763810056461,0.77217656,2735.8,2735.3,0.125]
[1763810056664,0.405504,2735.9,2735.3,0.125]
[1763810057027,3.36497,2736.0,2735.3,0.125]
[1763810057234,0.896004,2735.9,2735.3,0.125]
[1763810057563,0.4998,2735.4,2735.3,0.125]
[1763810057764,0.0497,2735.8,2735.3,0.125]
[1763810058110,0.4953,2735.4,2735.3,0.125]
[1763810058441,0.405504,2735.3,2734.6,0.1922]
[1763810058764,0.4905,2735.3,2734.7,0.125]
[1763810059782,0.405504,2735.2,2734.7,0.125]
[1763810059945,0.6572,2734.8,2734.7,0.125]
[1763810060287,0.6572,2734.8,2734.6,0.125]
[1763810060748,0.5505,2734.7,2734.6,0.125]
[1763810060954,0.1574,2734.8,2734.4,0.125]
[1763810061149,0.4905,2735.1,2734.4,0.125]
[1763810061349,0.0589,2734.5,2734.4,0.125]
[1763810061756,0.63282285,2734.5,2734.4,0.125]
[1763810061977,0.57392285,2734.5,2734.4,0.577]
[1763810062176,0.57392285,2734.5,2734.4,1.0281]
[1763810062488,0.405504,2735.2,2734.4,1.0281]
[1763810062689,0.405504,2735.2,2734.8,0.452]
[1763810063195,0.57388637,2735.1,2734.8,0.452]
[1763810064089,0.57388637,2735.1,2734.5,0.4511]
[1763810064271,0.4998,2734.9,2734.4,0.125]
[1763810064663,0.4998,2734.9,2734.4,0.5761]
[1763810065617,0.405504,2735.3,2734.8,0.452]
[1763810065776,0.405504,2735.3,2734.5,0.4511]
[1763810066377,0.896004,2735.3,2734.5,0.4511]
[1763810066579,0.405504,2735.4,2734.5,0.4511]
[1763810067109,0.896004,2735.4,2734.5,0.4511]
[1763810067909,0.4905,2735.3,2734.5,0.4511]
[1763810068795,0.4925,2735.3,2734.5,0.4511]
[1763810070378,0.405504,2735.2,2734.5,0.4511]
[1763810070913,0.896004,2735.2,2734.5,0.4511]
[1763810071113,0.002,2735.3,2734.5,0.4511]
[1763810071292,0.407504,2735.3,2734.5,0.4511]
[1763810071883,0.898004,2735.3,2734.5,0.4511]
[1763810072398,0.407504,2735.3,2734.5,0.4511]
[1763810072606,0.405504,2735.1,2734.5,0.4511]
[1763810072802,0.405504,2735.1,2734.4,0.125]
[1763810073136,0.405504,2735.1,2734.1,0.4511]
[1763810073137,0.405504,2734.9,2734.1,0.4511]
[1763810073316,0.405504,2734.9,2734.5,0.125]
[1763810073617,0.002,2735.3,2734.5,0.125]
[1763810073618,0.649,2734.8,2734.5,0.125]
[1763810073911,0.0589,2734.6,2734.5,0.125]
[1763810074211,0.1585,2734.8,2734.5,0.125]
[1763810074386,0.1585,2734.9,2734.5,0.125]
[1763810074816,0.649,2734.9,2734.5,0.125]
[1763810075015,0.0589,2734.6,2734.0,0.6433]
[1763810075216,0.0589,2734.6,2734.1,0.125]
[1763810075405,0.0589,2734.6,2734.1,0.5761]
[1763810075714,0.0589,2734.6,2734.1,0.125]
[1763810075915,0.5315,2734.6,2734.1,0.125]
[1763810076383,0.0182,2734.2,2734.1,0.125]
[1763810076582,0.405504,2734.5,2734.1,0.3232]
[1763810076784,0.1585,2734.9,2734.4,0.4879]
[1763810076992,0.1585,2734.9,2734.1,0.3232]
[1763810077304,0.6154,2734.9,2734.1,0.3232]
[1763810077499,0.405504,2734.8,2734.0,0.457]
[1763810077715,0.405504,2734.6,2734.1,0.125]
[1763810078097,0.4569,2734.6,2734.1,0.125]
[1763810078919,0.0922,2734.2,2734.1,0.125]
[1763810079716,0.0922,2734.2,2733.7,0.457]
[1763810079932,0.0922,2734.2,2733.5,0.457]
[1763810080230,0.0922,2734.2,2733.6,0.125]
[1763810080231,0.405504,2734.1,2733.6,0.125]
[1763810081137,0.405504,2734.1,2733.1,4.68291257]
[1763810081438,0.405504,2734.1,2733.2,0.125]
[1763810081600,0.405504,2734.1,2733.2,0.582]
[1763810081806,0.405504,2734.1,2733.3,0.457]
[1763810083243,0.405504,2734.0,2733.3,0.457]
[1763810083416,0.405504,2734.0,2733.2,0.125]
[1763810083603,0.6019,2733.9,2733.2,0.125]
[1763810084410,0.405504,2733.8,2733.2,0.125]
[1763810084825,0.862404,2733.8,2733.2,0.125]
[1763810087427,0.405504,2733.8,2733.2,0.125]
[1763810088809,0.405504,2733.8,2733.2,0.582]
[1763810089262,0.405504,2733.8,2733.3,0.457]
[1763810091510,0.145,2733.9,2733.3,0.457]
[1763810091720,0.405504,2734.2,2733.8,0.4879]
[1763810091978,0.9139,2734.5,2733.8,0.4879]
[1763810092275,0.4569,2734.5,2733.9,0.125]
[1763810092427,0.405504,2734.4,2733.9,0.125]
[1763810093445,0.862404,2734.4,2733.9,0.125]
[1763810093880,0.4879,2734.6,2733.9,0.582]
[1763810094045,0.405504,2734.5,2733.9,0.582]
[1763810094246,0.4569,2734.7,2733.9,0.582]
[1763810094445,0.405504,2734.5,2733.9,0.582]
[1763810094647,0.405504,2734.5,2734.0,0.457]
[1763810095040,0.405504,2734.6,2734.1,0.1982]
[1763810095455,0.1605,2734.9,2734.1,0.1982]
[1763810095694,0.1605,2734.9,2734.2,0.457]
[1763810096682,0.405504,2734.8,2734.2,0.457]
[1763810097732,0.405504,2734.8,2733.9,0.125]
[1763810097733,0.862404,2734.8,2733.9,0.125]
[1763810097946,0.862404,2734.8,2733.9,0.582]
[1763810098156,0.4569,2734.7,2733.9,0.582]
[1763810099285,0.405504,2734.6,2733.9,0.125]
[1763810099671,0.405504,2734.4,2733.9,0.125]
[1763810099842,0.0922,2734.0,2733.9,0.125]
[1763810100246,0.405504,2733.9,2733.0,0.1932]
[1763810100470,0.405504,2733.9,2733.1,0.457]
[1763810100471,0.550504,2733.9,2733.1,0.457]
[1763810100677,1.007404,2733.9,2733.2,0.125]
[1763810101177,1.007404,2733.9,2733.0,0.1932]
[1763810101178,0.405504,2733.7,2733.0,0.1932]
[1763810101385,0.405504,2733.7,2733.1,0.125]
[1763810101557,0.4569,2733.7,2733.1,0.125]
[1763810101874,0.405504,2733.8,2733.1,0.125]
[1763810102279,0.405504,2733.1,2733.0,0.001]
[1763810102481,0.405504,2733.6,2733.1,0.1982]
[1763810102667,0.405504,2733.6,2733.1,0.6861]
[1763810102867,0.405504,2733.5,2733.1,0.4879]
[1763810103073,0.458,2733.8,2733.1,0.6861]
[1763810103252,0.145,2733.9,2733.1,0.6861]
[1763810103253,0.405504,2733.7,2733.1,1.1431]
[1763810103449,0.405504,2733.7,2733.2,0.457]
[1763810103678,0.145,2733.9,2733.2,0.457]
[1763810103886,0.125,2734.7,2733.2,0.457]
[1763810104060,0.145,2734.2,2733.2,0.457]
[1763810104259,0.1605,2734.9,2733.2,0.49358715]
[1763810104462,0.90699264,2734.5,2733.2,0.457]
[1763810104661,0.457,2734.6,2733.2,0.457]
[1763810104887,0.4569,2734.4,2733.2,0.457]
[1763810105258,0.405504,2734.3,2733.2,0.457]
[1763810105992,0.405504,2734.1,2733.1,0.1982]
[1763810106188,0.405504,2734.1,2733.3,0.125]
[1763810106485,0.405504,2733.9,2733.3,0.125]
[1763810106669,0.0576,2733.4,2733.3,0.125]
[1763810106863,0.636,2733.8,2733.3,0.125]
[1763810107117,0.1442,2733.8,2733.3,0.125]
[1763810107441,0.1442,2733.8,2733.3,0.5941]
[1763810107748,0.4809,2733.4,2733.3,0.125]
[1763810109016,0.405504,2733.6,2733.3,0.125]
[1763810109919,0.4809,2733.4,2733.3,0.125]
[1763810110841,0.955604,2733.4,2733.3,0.125]
[1763810112150,0.1442,2733.8,2733.3,0.125]
[1763810112151,0.14667783,2733.5,2733.3,0.125]
[1763810112358,0.405504,2733.7,2733.3,0.125]
[1763810112560,0.897304,2733.7,2733.3,0.125]
[1763810112859,0.1442,2733.8,2733.3,0.125]
[1763810113153,0.405504,2733.7,2733.3,0.125]
[1763810113732,0.897304,2733.7,2733.3,0.125]
[1763810114256,0.405504,2733.7,2733.3,0.125]
[1763810114472,0.405504,2733.7,2733.3,0.5941]
[1763810114625,0.405504,2733.9,2733.3,0.5941]
[1763810114955,0.875604,2733.9,2733.3,0.5941]
[1763810115629,0.405504,2733.9,2733.3,0.5941]
[1763810116761,0.4809,2733.4,2733.3,0.125]
[1763810116935,0.405504,2733.9,2733.3,0.125]
[1763810117138,0.405504,2733.9,2733.3,0.6084]
[1763810117956,0.7391,2734.0,2733.4,0.4691]
[1763810118158,0.145,2734.0,2733.4,0.4691]
[1763810118754,0.405504,2733.9,2733.3,0.125]
[1763810118983,0.6111248,2733.9,2733.3,0.125]
[1763810119156,0.4809,2733.4,2733.3,0.125]
[1763810120045,0.4809,2733.4,2733.3,0.11015]
[1763810121182,0.954804,2733.4,2733.3,0.11015]
[1763810123278,0.405504,2733.3,2733.0,0.001]
[1763810123454,5.74104264,2733.1,2733.0,0.001]
[1763810123658,5.1586953,2733.1,2733.0,0.001]
[1763810123964,5.6961953,2733.1,2733.0,0.001]
[1763810124684,7.4986293,2733.1,2733.0,0.001]
[1763810124867,6.6257073,2733.1,2733.0,0.001]
[1763810125676,7.5480673,2733.1,2733.0,0.001]
[1763810125901,2.8839913,2733.1,2733.0,0.001]
[1763810126198,1.38789264,2733.1,2733.0,0.001]
[1763810126377,1.79339664,2733.1,2733.0,0.001]
[1763810127189,1.86179664,2733.1,2733.0,0.001]
[1763810128103,1.79339664,2733.1,2733.0,0.001]
[1763810128805,5.16040764,2733.1,2733.0,0.001]
[1763810128991,2.39250637,2733.1,2733.0,0.001]
[1763810129165,1.86179664,2733.1,2733.0,0.001]
[1763810130772,4.86080264,2733.1,2733.0,0.001]
[1763810131405,5.32990264,2733.1,2733.0,0.001]
[1763810131901,5.87471683,2733.1,2733.0,0.001]
[1763810132585,5.30871683,2733.1,2733.0,0.001]
[1763810132785,5.84642851,2733.1,2733.0,0.001]
[1763810132988,3.37452251,2733.1,2733.0,0.001]
[1763810133522,1.04341419,2733.1,2733.0,0.9535]
[1763810133821,0.405504,2733.2,2733.0,0.9535]
[1763810133996,0.4691,2733.3,2733.0,0.9535]
[1763810134198,0.90699264,2733.6,2733.1,0.4834]
[1763810134387,0.33286176,2733.5,2733.1,0.4834]
[1763810134589,0.33286176,2733.5,2733.0,0.4701]
[1763810134590,0.4809,2733.2,2733.0,0.001]
[1763810135115,0.405504,2733.1,2733.0,0.001]
[1763810135427,0.4691,2733.4,2733.0,0.001]
[1763810135630,0.405504,2733.3,2733.0,0.4844]
[1763810136324,0.405504,2733.3,2733.0,0.001]
[1763810137063,0.405504,2733.3,2733.0,0.4998]
[1763810139323,0.405504,2733.3,2733.2,0.471]
[1763810140026,0.405504,2733.3,2733.0,0.4998]
[1763810140594,0.405504,2733.3,2733.0,0.001]
[1763810140871,0.405504,2733.5,2733.0,0.001]
[1763810141136,2.372106,2733.4,2733.0,0.001]
[1763810141347,0.326451,2733.3,2733.0,0.001]
[1763810141494,0.405504,2733.1,2733.0,0.001]
[1763810142135,0.405504,2733.1,2733.0,0.472]
[1763810143233,0.4889,2733.5,2733.0,0.9708]
[1763810143234,0.002,2733.5,2733.0,0.9708]
[1763810143439,0.405504,2733.4,2733.1,0.6591]
[1763810143602,0.405504,2733.4,2733.1,1.1579]
[1763810143934,0.405504,2733.4,2733.3,0.471]
[1763810144237,0.4909,2733.5,2733.3,0.471]
[1763810144238,0.002,2733.5,2733.3,0.471]
[1763810144440,0.002,2733.5,2733.4,0.471]
[1763810144857,0.002,2733.5,2733.4,0.9698]
[1763810148465,0.002,2733.8,2733.4,0.9698]
[1763810148624,0.002,2733.8,2733.7,0.471]
[1763810149139,0.002,2733.8,2733.7,0.9698]
[1763810151532,0.002,2734.1,2733.7,0.9698]
[1763810151743,0.002,2734.1,2734.0,0.471]
[1763810151959,0.002,2734.1,2734.0,0.596]
[1763810152168,0.002,2734.1,2734.0,1.0948]
[1763810154350,0.002,2734.1,2734.0,6.06046136]
[1763810154557,0.405504,2735.3,2734.0,6.06046136]
[1763810154867,0.405504,2735.4,2734.1,0.6869]
[1763810155464,0.4869,2735.8,2734.4,4.96566136]
[1763810155671,0.1585,2736.4,2734.5,0.124]
[1763810155838,0.4869,2736.0,2734.8,4.96566136]
[1763810156043,0.4869,2736.2,2734.8,4.96566136]
[1763810156246,0.1585,2736.4,2734.9,0.4988]
[1763810156247,0.4869,2736.3,2734.9,0.4988]
[1763810156466,0.4869,2736.3,2735.0,0.124]
[1763810156966,0.4869,2736.3,2734.9,0.4988]
[1763810156967,0.651,2736.1,2735.1,0.8109]
[1763810157173,0.405504,2736.0,2735.1,0.8109]
[1763810157381,0.405504,2736.0,2735.2,0.4988]
[1763810158443,0.5737611,2736.3,2735.2,0.4988]
[1763810158444,0.405504,2736.2,2735.9,0.471]
[1763810158640,0.405504,2736.2,2735.9,0.124]
[1763810158841,0.4933,2736.0,2735.9,0.124]
[1763810159562,0.898804,2736.0,2735.9,0.124]
[1763810159768,0.898804,2736.0,2735.1,0.1881]
[1763810159769,0.405504,2735.9,2735.7,0.124]
[1763810159943,0.625804,2735.9,2735.7,0.124]
[1763810160140,0.955004,2735.8,2735.7,0.124]
[1763810161168,0.898804,2735.8,2735.7,0.124]
[1763810161352,0.002,2735.9,2735.7,0.595]
[1763810161751,0.002,2735.9,2735.7,0.124]
[1763810161979,1.119004,2735.8,2735.7,0.124]
[1763810162181,0.405504,2735.7,2734.9,0.1881]
[1763810162382,0.405504,2735.7,2733.9,4.96566136]
[1763810162383,0.462704,2735.7,2733.9,4.96566136]
[1763810162582,0.163,2735.8,2734.2,0.6228]
[1763810162583,0.405504,2735.3,2734.2,0.6228]
[1763810162889,0.405504,2735.1,2733.9,0.4988]
[1763810163054,1.31249664,2734.9,2733.9,0.4988]
[1763810163424,3.676874,2735.3,2734.2,0.6228]
[1763810163704,0.462704,2735.6,2734.2,0.124]
[1763810163851,0.405504,2735.2,2734.2,0.124]
[1763810164172,0.405504,2735.2,2734.2,0.6228]
[1763810164571,0.4869,2735.4,2734.2,0.6228]
[1763810164970,0.405504,2735.3,2733.9,0.4988]
[1763810165174,0.405504,2735.1,2734.3,0.124]
[1763810165673,0.405504,2735.0,2734.3,0.124]
[1763810165978,0.405504,2735.0,2734.3,0.6137]
[1763810166185,0.405504,2734.8,2734.3,0.6137]
[1763810166582,0.405504,2734.8,2734.4,0.4897]
[1763810167591,1.0642,2735.1,2734.4,0.4897]
[1763810167790,0.405504,2735.1,2734.4,0.4897]
[1763810167977,0.856004,2735.1,2734.3,0.124]
[1763810168183,0.0985,2734.4,2733.8,0.001]
[1763810168392,0.0985,2734.4,2734.1,0.124]
[1763810168574,0.2575,2734.4,2734.1,0.124]
[1763810169304,0.853104,2734.2,2734.1,0.124]
[1763810169659,0.405504,2734.0,2733.8,0.001]
[1763810169859,0.4505,2734.2,2733.8,0.001]
[1763810170065,0.405504,2734.3,2733.8,0.4907]
[1763810171177,0.405504,2734.5,2733.8,0.4907]
[1763810171699,0.4907,2734.8,2734.4,0.6586]
[1763810171884,0.159,2734.9,2734.4,0.1936]
[1763810172086,0.159,2734.9,2733.8,0.4907]
[1763810172087,0.159,2734.9,2734.5,0.124]
[1763810172397,0.4505,2734.8,2734.3,0.124]
[1763810172603,0.405504,2734.7,2734.3,0.124]
[1763810173100,0.0985,2734.4,2734.3,0.124]
[1763810173465,0.405504,2734.3,2733.9,0.124]
[1763810173866,1.31249664,2734.6,2733.9,0.124]
[1763810174067,0.0985,2734.0,2733.8,0.001]
[1763810174288,0.1466,2733.9,2733.8,0.001]
[1763810174797,0.552104,2733.9,2733.8,0.001]
[1763810174999,1.002604,2733.9,2733.8,0.001]
[1763810175882,1.90959664,2733.9,2733.8,0.001]
[1763810176186,4.7350843,2733.9,2733.8,0.001]
[1763810176872,4.7350843,2733.9,2733.5,0.001]
[1763810176873,0.405504,2733.6,2733.5,0.001]
[1763810177079,9.33793964,2733.6,2733.5,0.001]
[1763810177392,9.78583964,2733.6,2733.5,0.001]
[1763810177574,10.3644236,2733.6,2733.5,0.001]
[1763810177777,25.32975396,2733.6,2733.2,0.001]
[1763810177987,10.886654,2733.3,2733.2,0.001]
[1763810178188,4.24195164,2733.3,2733.2,0.001]
[1763810178498,1.76749664,2733.3,2733.2,0.001]
[1763810179070,1.31699664,2733.3,2733.2,0.001]
[1763810180683,1.31249664,2733.3,2733.2,0.001]
[1763810181706,1.41099664,2733.3,2733.2,0.001]
[1763810181910,1.85799664,2733.3,2733.2,0.001]
[1763810182073,9.6210963,2733.3,2733.2,0.001]
[1763810182286,4.3637963,2733.3,2733.2,0.001]
[1763810182479,4.93808045,2733.3,2733.2,0.001]
[1763810182895,5.08478411,2733.3,2733.2,0.001]
[1763810183096,10.66778211,2733.3,2733.2,0.001]
[1763810183298,9.55191811,2733.3,2733.2,0.001]
[1763810183508,7.52059811,2733.3,2733.2,0.001]
[1763810183708,6.94631396,2733.3,2733.2,0.001]
[1763810184217,5.49059996,2733.3,2733.2,0.001]
[1763810185007,19.41863264,2733.2,2733.1,0.001]
[1763810185216,20.53865264,2733.2,2733.1,0.001]
[1763810185999,18.53546464,2733.2,2733.1,0.001]
[1763810186221,13.43638964,2733.1,2732.9,0.001]
[1763810186524,16.20226064,2733.0,2732.9,0.001]
[1763810186835,14.42741425,2733.0,2732.9,0.001]
[1763810187127,4.40351025,2733.0,2732.9,0.001]
[1763810187426,10.30394264,2733.0,2732.9,0.001]
[1763810187626,8.18613564,2733.0,2732.9,0.001]
[1763810188133,1.91514658,2733.0,2732.9,0.001]
[1763810188343,13.14240258,2733.0,2732.9,0.001]
[1763810188621,17.840472,2732.8,2732.7,0.001]
[1763810188834,18.84066464,2732.8,2732.7,0.001]
[1763810189129,11.08862564,2732.8,2732.7,0.001]
[1763810189344,4.76328864,2732.8,2732.7,0.001]
[1763810190205,10.57093964,2732.8,2732.7,0.001]
[1763810190392,11.0338296,2732.8,2732.7,0.001]
[1763810191322,23.2528956,2732.8,2732.7,0.001]
[1763810191634,21.0179136,2732.8,2732.7,0.001]
[1763810191801,19.3595646,2732.8,2732.7,0.001]